Cogmind - Beta 11.1 @@@ ROGUE MODE // 2022.06.06 @ 19:39:01 Player: CrossedViper Result: Destroyed by X-82 Rainmaker with Heavy Flak Cannon Performance ------------- Evolutions (7) 3500 Regions Visited (26) 5200 Robots Destroyed (444) 2220 Value Destroyed (18645) 18645 Prototype IDs (85) 1700 Alien Tech Used (0) 0 Bonus (5608) 5608 TOTAL SCORE: 36873 Bonus ------- High Alert Combat Kills 2929 Follower Combat Kills 1454 Aligned with FarCom 300 Met Data Miner 300 Met Imprinter 300 Was Imprinted 300 Met Warlord at Base 500 MAIN.C Attacked Warlord 500 Warlord Defense Kills 2348 Friendly Fire -3323 Cogmind --------- Core Integrity 0/1300 Matter 281/300 Energy 98/100 System Corruption 24% Temperature Cool (0) Movement Core (50) Location -3/Research Parts ------- > --- POWER (2) -------- (None) > --- PROPULSION (6) --- Biometal Medium Treads Armored Huge Wheel > --- UTILITY (9) ------ (None) > --- WEAPON (4) ------- (None) > --- INVENTORY (5) ---- Advanced Transmission Jammer Experimental Cloaking Device Advanced EM Disruption Field Ghost Barrier Improved Plasma Cutter Peak State ------------ > --- POWER ------------ Particle Reactor Improved Quantum Reactor > --- PROPULSION ------- Armored Medium Treads Armored Medium Treads Armored Medium Treads Armored Medium Treads Improved Heavy Siege Treads > --- UTILITY ---------- Advanced Heat Sink Experimental Coolant Injector Huge Storage Unit Experimental Targeting Computer Improved Armor Integrity Analyzer Improved Weapon Cycler Advanced Transmission Jammer Improved Heavy Armor Plating > --- WEAPON ----------- Enhanced Force Rifle Vortex Rifle Vortex Rifle Nova Cannon > --- INVENTORY -------- Vortex Chain Reactor Armored Medium Treads Improved Heavy Siege Treads Experimental Energy Well Experimental Energy Well Experimental Energy Well Advanced Matter Compressor Active Sensor Suite Experimental Cloaking Device Graphene Brace Thermal Barrier Advanced EM Disruption Field Ghost Barrier Enhanced Force Rifle Tesla Bomb Launcher Long-range Missile Launcher Smartbomb Launcher Improved Plasma Cutter RU-N14's Throwing Claymores AD-0RF's Magmablaster [Rating: 160] Favorites ----------- Power F-cell Engine Engine F-cell Engine Power Core Light Nuclear Core Reactor Antimatter Reactor Propulsion Armored Medium Treads Treads Armored Medium Treads Leg Enhanced Flexi-carbon Leg Wheel Armored Huge Wheel Utility Huge Storage Unit Device Advanced Heat Sink Storage Huge Storage Unit Processor Advanced Targeting Computer Protection Active Cooling Armor Weapon Heavy Plasma Cannon Energy Gun Enhanced Force Rifle Energy Cannon Heavy Plasma Cannon Ballistic Gun Autogun Ballistic Cannon Flak Cannon Launcher Grenade Launcher Special Weapon AD-0RF's Magmablaster Build | -11 -10 -10 -10 -9 -8 -7 -7 -7 -7 -6 -6 -6 -6 -6 -6 -6 -5 -5 -5 -5 -4 -4 -4 -4 -3 -3 ------- Run | Scr Mat Min Exi Min Mat Fac Low Low Zio Pro Fac Was Fac Low Low Dat Pro Fac Was Fac Fac Upp Upp War Pro Res Slots Evolved 14 | . . . . . 4 2 . . . . 2 . . . . . . 2 . . 2 . . . . 2 Power 1 | . . . . . . . . . . . . . . . . . . 1 . . . . . . . . Propulsion 4 | . . . . . 1 1 . . . . . . . . . . . . . . 2 . . . . . Utility 7 | . . . . . 1 1 . . . . 2 . . . . . . 1 . . . . . . . 2 Weapon 2 | . . . . . 2 . . . . . . . . . . . . . . . . . . . . . Parts Attached 278 | 5 7 1 . . 13 35 4 2 9 . 2 13 30 2 3 4 10 24 10 23 12 . 6 23 2 38 Power 23 | 1 1 . . . . 1 1 . . . . 1 1 . . . . 4 1 5 2 . 1 1 . 3 Engine 6 | 1 1 . . . . 1 1 . . . . 1 . . . . . 1 . . . . . . . . Core 7 | . . . . . . . . . . . . . . . . . . 2 . 4 . . 1 . . . Reactor 10 | . . . . . . . . . . . . . 1 . . . . 1 1 1 2 . . 1 . 3 Propulsion 58 | 2 . . . . 7 8 1 . . . . 3 1 . 1 . 2 4 4 5 4 . . 5 . 11 Treads 43 | 2 . . . . 7 5 1 . . . . 3 . . . . . 1 1 5 4 . . 5 . 9 Leg 3 | . . . . . . . . . . . . . . . . . 2 1 . . . . . . . . Wheel 12 | . . . . . . 3 . . . . . . 1 . 1 . . 2 3 . . . . . . 2 Hover . | . . . . . . . . . . . . . . . . . . . . . . . . . . . Flight . | . . . . . . . . . . . . . . . . . . . . . . . . . . . Utility 90 | . 2 1 . . 1 11 . . 4 . 2 7 15 . . . 5 9 . 7 4 . 1 7 2 12 Device 46 | . . 1 . . 1 6 . . . . 1 2 5 . . . 3 4 . 6 2 . 1 5 2 7 Storage 8 | . 2 . . . . 1 . . 1 . . 1 3 . . . . . . . . . . . . . Processor 9 | . . . . . . 2 . . . . 1 . 1 . . . . 1 . 1 1 . . . . 2 Hackware . | . . . . . . . . . . . . . . . . . . . . . . . . . . . Protection 27 | . . . . . . 2 . . 3 . . 4 6 . . . 2 4 . . 1 . . 2 . 3 Artifact . | . . . . . . . . . . . . . . . . . . . . . . . . . . . Weapon 107 | 2 4 . . . 5 15 2 2 5 . . 2 13 2 2 4 3 7 5 6 2 . 4 10 . 12 Energy Gun 21 | 1 . . . . . 2 . . 3 . . 1 1 . . . . . . 3 2 . 2 2 . 4 Energy Cannon 30 | . . . . . . 2 . . 1 . . . 7 . . 3 1 6 1 3 . . . 5 . 1 Ballistic Gun 18 | 1 3 . . . 5 8 . . . . . . . . . . . . . . . . . . . 1 Ballistic Cannon 2 | . . . . . . . . . . . . 1 1 . . . . . . . . . . . . . Launcher 22 | . 1 . . . . 3 2 2 1 . . . 1 1 1 . 1 . . . . . 2 3 . 4 Special Weapon 14 | . . . . . . . . . . . . . 3 1 1 1 1 1 4 . . . . . . 2 Impact Weapon . | . . . . . . . . . . . . . . . . . . . . . . . . . . . Slashing Weapon . | . . . . . . . . . . . . . . . . . . . . . . . . . . . Piercing Weapon . | . . . . . . . . . . . . . . . . . . . . . . . . . . . Special Melee Weapon . | . . . . . . . . . . . . . . . . . . . . . . . . . . . Unidentified Prototypes 37 | . 1 . . . 1 8 . . 3 . . . 9 . . . 2 2 . 2 1 . 1 4 . 3 Parts Lost 67 | . . . . . 1 13 . . . . . . 2 . . . 1 8 5 5 . 2 1 . . 29 Power 7 | . . . . . . . . . . . . . 1 . . . . 1 . 2 . 1 . . . 2 Propulsion 18 | . . . . . . 4 . . . . . . . . . . . 2 2 1 . . . . . 9 Utility 22 | . . . . . 1 3 . . . . . . 1 . . . 1 4 1 1 . 1 . . . 9 Weapon 20 | . . . . . . 6 . . . . . . . . . . . 1 2 1 . . 1 . . 9 Highest Loss Streak 16 | . . . . . 1 5 . . . . . . 1 . . . 1 2 3 3 . 2 1 . . 16 To Critical Strikes 2 | . . . . . . . . . . . . . . . . . . . 1 . . . . . . 1 Average Slot Usage (%) 77 | . 84 90 100 100 92 85 88 84 57 53 60 49 72 73 72 47 73 79 69 84 89 84 76 80 93 78 Engine 4 | . 14 14 14 14 9 7 7 7 7 7 6 6 3 . . . . 3 . . . . . . . . Core 1 | . . . . . . . . . . . . . . . . . . 1 2 9 6 . 4 5 5 . Reactor 2 | . . . . . . . . . . . . . 2 6 6 6 6 3 2 . 3 10 5 5 5 5 Treads 16 | . 28 28 28 28 25 14 14 15 15 15 13 7 6 6 2 . . 2 3 15 25 26 26 26 31 21 Wheel 3 | . . . . . . 7 7 7 7 7 6 6 6 6 10 13 9 7 11 . . . . . . . Device 8 | . . 5 14 14 13 10 15 15 7 . 6 1 2 . . . 3 10 11 16 14 5 9 11 14 18 Storage 7 | . 13 14 14 14 9 7 7 7 7 7 6 6 6 6 6 6 6 5 5 5 5 5 5 5 5 3 Processor 4 | . . . . . . 6 . . . . 6 6 6 6 6 6 6 2 5 10 10 10 5 5 5 8 Protection 4 | . . . . . . 2 7 7 5 7 6 6 9 13 13 13 6 5 . . 2 5 . 1 5 2 Energy Gun 4 | . 4 . . . . . 7 7 4 7 6 5 . . . . . . . 1 17 21 19 9 10 8 Energy Cannon 7 | . . . . . . 3 7 7 . . . . 21 20 20 . 23 21 12 14 3 . . 9 10 3 Ballistic Gun 6 | . 23 28 28 28 35 22 . . . . . . . . . . . . . . . . . . . . Special Weapon 1 | . . . . . . . . . . . . . 3 4 5 . 2 . 7 4 . . . . . . Naked Turns . | . . . . . . . . . . . . . . . . . . . . . . . . . . . Heaviest Build 186 | 7 54 55 55 55 62 93 81 81 104 104 107 157 169 169 169 169 169 186 159 135 145 145 124 154 154 166 Greatest Support 183 | 40 40 40 40 40 60 28 28 28 28 28 28 28 70 28 56 56 56 44 58 132 178 178 178 178 162 183 Greatest Overweight (x) 8 | . 1 1 1 1 1 3 2 2 3 3 3 5 6 6 6 3 5 8 4 7 1 . . . . 1 Average Overweight (x) 2 | . . 1 1 1 1 2 2 2 2 3 3 4 5 5 3 2 3 4 3 . . . . . . . Largest Inventory Capacity 25 | 5 20 20 20 20 20 20 20 20 20 20 20 25 25 25 25 25 25 25 25 25 25 25 25 25 25 25 Average Capacity 22 | 5 13 20 20 20 20 20 20 20 20 20 20 23 24 25 25 25 25 25 25 25 25 25 25 25 25 23 Most Carried 25 | 5 16 16 15 18 20 20 18 18 20 20 20 24 25 25 25 25 25 25 25 25 25 25 25 25 25 25 Average Carried 20 | 3 9 15 15 16 18 18 15 17 18 19 18 22 22 24 24 24 24 24 21 18 24 25 22 23 24 21 Final Capacity 25 | 5 20 20 20 20 20 20 20 20 20 20 20 25 25 25 25 25 25 25 25 25 25 25 25 25 25 5 Final Carried 25 | 5 16 15 15 18 19 19 15 18 20 20 20 24 23 25 24 24 25 24 20 25 25 25 22 25 25 5 Class Distribution -------------------- 24% | Mutant 14% | Gunner 14% | Pyromaniac-Gunner 12% | Scavenger-Gunner 10% | Scavenger-Skirmisher 8% | Scavenger-Mutant 5% | Scavenger-Tank 3% | Skirmisher 3% | Tank Dominant Class ---------------- Mutant | -10/Materials Mutant | -10/Mines Mutant | -10/Exiles Mutant | -9/Mines Scavenger-Skirmisher | -8/Materials Scavenger-Skirmisher | -7/Factory Mutant | -7/Lower Caves Mutant | -7/Lower Caves Gunner | -7/Zion Gunner | -6/Proximity Caves Gunner | -6/Factory Tank | -6/Waste Pyromaniac-Gunner | -6/Factory Pyromaniac-Mutant | -6/Lower Caves Pyromaniac-Gunner | -6/Lower Caves Mutant | -6/Data Miner Pyromaniac-Gunner | -5/Proximity Caves Scavenger-Tank | -5/Factory Scavenger-Mutant | -5/Waste Mutant | -5/Factory Scavenger-Gunner | -4/Factory Scavenger-Gunner | -4/Upper Caves Scavenger-Skirmisher | -4/Upper Caves Scavenger-Skirmisher | -4/Warlord Scavenger-Tank | -3/Proximity Caves Scavenger-Gunner | -3/Research Resources | -11 -10 -10 -10 -9 -8 -7 -7 -7 -7 -6 -6 -6 -6 -6 -6 -6 -5 -5 -5 -5 -4 -4 -4 -4 -3 -3 ----------- Run | Scr Mat Min Exi Min Mat Fac Low Low Zio Pro Fac Was Fac Low Low Dat Pro Fac Was Fac Fac Upp Upp War Pro Res Matter Collected 7537 | 170 449 61 . 171 720 1532 125 55 79 811 20 213 501 68 74 . 629 329 110 326 120 52 141 359 30 392 Remotely . | . . . . . . . . . . . . . . . . . . . . . . . . . . . Salvage Created 22183 | . 589 36 . 285 1139 1962 181 226 . 537 84 1611 1914 314 84 . 473 2668 1064 809 2236 495 693 1062 439 3282 Parts 925 | . 34 8 . 21 51 118 5 8 . 19 7 21 62 23 4 . 9 113 1 32 116 25 29 35 24 160 Haulers Intercepted 13 | . 1 . . . 2 2 . . . . . . 3 . . . . 2 . . 2 . . . . 1 Recyclers Shooed 14 | . 1 . . . 2 5 . . . . . . . . . . . 3 . . 1 . . . . 2 Parts Field Recycled . | . . . . . . . . . . . . . . . . . . . . . . . . . . . Retrieved Matter . | . . . . . . . . . . . . . . . . . . . . . . . . . . . Parts Self-Destructed 154 | . . . . . . . 4 5 . 35 . . . 18 8 . 12 . . . . 29 20 . 23 . Prevented 26 | . . . . . . . . 2 . 13 . . . 2 1 . 1 . . . . . 7 . . . Kills | -11 -10 -10 -10 -9 -8 -7 -7 -7 -7 -6 -6 -6 -6 -6 -6 -6 -5 -5 -5 -5 -4 -4 -4 -4 -3 -3 ------- Run | Scr Mat Min Exi Min Mat Fac Low Low Zio Pro Fac Was Fac Low Low Dat Pro Fac Was Fac Fac Upp Upp War Pro Res Combat Hostiles Destroyed 328 | . 10 2 . 5 14 31 7 7 . 7 1 6 36 10 3 . 9 44 6 12 22 8 17 17 5 49 Guns 119 | . 10 2 . 5 14 16 . . . 7 1 5 . . . . . . . 2 21 7 7 1 3 18 Cannons 83 | . . . . . . . . 1 . . . 1 15 5 1 . 2 35 1 6 1 . . 6 2 7 AOE 87 | . . . . . . 11 6 4 . . . . 10 3 2 . 5 8 4 2 . . 9 4 . 19 Classes Destroyed 25 | . 6 1 . 1 1 6 . . . 1 . 1 1 1 . . . 2 . . . . 1 2 1 . Worker 34 | . . . . 1 3 8 . . . . 1 . 3 . . . . 9 . . 3 . . . . 6 Builder 23 | . 1 . . . . 5 . . . . . . 3 . . . . 4 . 1 2 . . . . 7 Tunneler 1 | . . 1 . . . . . . . . . . . . . . . . . . . . . . . . Hauler 13 | . 1 . . . 2 2 . . . . . . 3 . . . . 2 . . 2 . . . . 1 Recycler 22 | . 2 . . 1 4 9 . . . . . . 1 . . . . 1 . 1 2 . . . . 1 Mechanic 5 | . . . . . . 1 . . . . . . 1 . . . . . . 1 1 . . 1 . . Operator 2 | . . . . . . 2 . . . . . . . . . . . . . . . . . . . . Watcher 10 | . 2 . . . 2 1 . . . . . . . . . . . 1 . . 1 . . . . 3 Swarmer 73 | . 3 2 . 3 6 3 4 3 . . . . 5 8 3 . 5 . . . 5 2 11 3 . 7 Saboteur 1 | . . . . . . . . . . . . . . . . . . 1 . . . . . . . . Grunt 108 | . 7 . . 3 9 10 3 4 . 5 . . 13 . . . 2 25 . 2 3 . 3 6 . 13 Brawler 4 | . . . . . . . . . . . . . . . . . . 1 . . . . 1 1 . 1 Duelist 1 | . . . . . . . . . . . . . . . . . . . . . . . 1 . . . Protector 7 | . . . . . . 2 . . . . . . 2 . . . . . . . . . . 1 . 2 Sentry 18 | . . . . . 1 2 . . . 1 1 . 2 1 . . . 3 . 2 . 1 1 . 1 2 Specialist 18 | . . . . . . 4 . . . . . . 3 . . . . . . 2 4 . . 1 . 4 Hunter 35 | . . . . . . 5 . . . 1 . . 4 . . . 2 6 . 1 2 2 . . . 12 Programmer 46 | . . . . . . 5 . . . . . . 6 1 . . . 8 . 4 7 3 . 2 3 7 Heavy 4 | . . . . . . . . . . . . . 1 . . . . . . 1 1 . . . . 1 Behemoth 1 | . . . . . . . . . . . . . . . . . . . . . . . . . 1 . Compactor 12 | . . . . . . . . . . . . 6 . . . . . . 6 . . . . . . . Striker 2 | . . . . . . . . . . . . . . . . . . . . . . . . 2 . . Executioner 1 | . . . . . . . . . . . . . . . . . . . . . . . . 1 . . Tinkerer 1 | . . . . . . . . . . . . . . 1 . . . . . . . . . . . . Wasp 1 | . . . . . . . . . . 1 . . . . . . . . . . . . . . . . Thug 1 | . . . . 1 . . . . . . . . . . . . . . . . . . . . . . Mutant 2 | . . . . . . . . . . 1 . 1 . . . . . . . . . . . . . . Best Kill Streak 21 | . 4 2 . 2 13 20 4 4 . 3 1 2 14 4 3 . 5 11 3 5 5 3 10 7 2 21 Combat Bots Only 15 | . 3 2 . 2 7 8 4 4 . 3 1 2 10 4 3 . 5 8 3 4 3 3 10 6 2 15 Max Kills in Single Turn 6 | . 2 1 . 1 3 5 3 3 . 1 1 1 4 2 2 . 5 6 1 2 2 2 2 2 1 5 Gunslinging 1 | . 1 . . . 1 . . . . . . . . . . . . . . . . 1 1 . . . Exploded 5 | . . . . . . 3 3 3 . . . . 3 2 2 . 5 5 1 1 . . 2 1 . 4 Melee . | . . . . . . . . . . . . . . . . . . . . . . . . . . . Uniques/NPCs Destroyed 1 | . . . . . . . . . . . . . 1 . . . . . . . . . . . . . AD-0RF (-6/Factory) Combat | -11 -10 -10 -10 -9 -8 -7 -7 -7 -7 -6 -6 -6 -6 -6 -6 -6 -5 -5 -5 -5 -4 -4 -4 -4 -3 -3 -------- Run | Scr Mat Min Exi Min Mat Fac Low Low Zio Pro Fac Was Fac Low Low Dat Pro Fac Was Fac Fac Upp Upp War Pro Res Damage Taken 26573 | . 300 10 . 124 429 3639 167 145 . 742 229 283 1873 235 250 . 622 3391 139 1422 1600 763 726 643 737 8104 Core 2674 | . 35 . . 25 34 433 29 14 . . 5 . 120 12 14 . . 167 42 117 131 12 55 76 49 1304 Absorbed by Shields . | . . . . . . . . . . . . . . . . . . . . . . . . . . . Reduced by Siege Mode 23 | . . . . . . . . . . . . . . . . . . . . . . . . . . 23 Redirected to Shielding 802 | . . . . . . . . . . . . . 264 26 41 . 39 243 . . . . . 14 . 175 Regen/Repaired (Parts) 1132 | . . . . . 264 . . . 868 . . . . . . . . . . . . . . . . . Core Remaining (%) 74 | 100 . . . 76 93 . . . . 32 . . . . . . 82 . . 67 . . . . 71 . Volleys Fired 784 | . 58 3 1 21 48 85 9 6 . 21 5 23 73 8 4 . 16 84 24 42 53 13 20 41 20 106 Largest 4 | . 2 2 2 2 4 4 3 2 . 1 1 1 4 4 3 . 4 4 4 4 4 4 4 4 4 4 Hottest 490 | . 70 46 46 46 92 162 166 136 . 250 250 250 490 490 270 . 490 360 360 342 342 324 324 342 342 365 Shots Fired 2030 | . 115 6 2 42 192 225 18 10 . 21 5 26 209 24 8 . 49 253 39 92 212 54 40 72 80 236 Gun 1147 | . 114 6 2 42 192 195 6 3 . 21 5 21 . . . . . . . 29 208 54 30 21 40 158 Cannon 755 | . . . . . . 22 6 3 . . . 5 180 18 6 . 43 245 20 60 4 . . 42 40 61 Launcher 50 | . 1 . . . . 8 6 4 . . . . . 2 2 . 1 . . . . . 10 9 . 7 Special 78 | . . . . . . . . . . . . . 29 4 . . 5 8 19 3 . . . . . 10 Kinetic 541 | . 88 6 2 42 192 195 . . . . . 5 . . . . . . . . . . . . . 11 Thermal 1316 | . 26 . . . . . . . . 21 5 21 203 22 6 . 48 245 22 86 212 54 30 63 80 172 Explosive 63 | . 1 . . . . 8 6 2 . . . . 6 . . . 1 8 17 3 . . 3 2 . 6 Electromagnetic 66 | . . . . . . 22 12 8 . . . . . 2 2 . . . . 3 . . 7 7 . 3 Entropic 44 | . . . . . . . . . . . . . . . . . . . . . . . . . . 44 Robot Hit Streak 41 | . 17 1 3 11 19 15 7 4 . 10 4 14 27 12 1 . 9 17 30 41 32 8 5 15 19 14 Robot Miss Streak 15 | . 6 2 . 6 4 7 3 2 . 15 7 8 3 2 2 . 1 3 1 2 2 2 2 2 2 3 Penetration Max 1 | . . . . . . 1 . . . . . . . . . . . . . . . . . . . 1 Secondary Targets 25 | . 3 . . 1 8 4 . . . . . . . . . . . . . . 5 2 1 . . 1 Max Gunslinging Chain 1 | . 1 . . 1 1 1 . . . . . . . . . . . . . . 1 1 1 . . 1 Shots Hit Robots 1309 | . 64 2 2 21 118 162 12 7 . 21 4 24 140 11 2 . 29 145 35 70 148 35 15 25 62 155 Core Hits 887 | . 25 2 . 11 48 136 17 6 . 40 6 30 95 12 3 . 17 108 12 26 58 12 27 38 13 145 Critical Kills 32 | . . . . . . . . . . . . . 3 . . . 1 1 . 1 11 4 1 2 1 7 Critical Parts Destroyed 52 | . . . . . . 1 . . . . . . . . . . . . . 5 24 7 2 . 3 10 Critical Strikes 95 | . 2 . . . . 1 . . . . . . 6 . . . 1 1 . 7 35 11 3 3 8 17 Burn 2 | . 2 . . . . . . . . . . . . . . . . . . . . . . . . . Meltdown 7 | . . . . . . . . . . . . . 3 . . . 1 1 . . . . . 1 . 1 Destroy 82 | . . . . . . 1 . . . . . . . . . . . . . 6 35 11 3 2 8 16 Sever 4 | . . . . . . . . . . . . . 3 . . . . . . 1 . . . . . . Melee Attacks . | . . . . . . . . . . . . . . . . . . . . . . . . . . . Impact . | . . . . . . . . . . . . . . . . . . . . . . . . . . . Slashing . | . . . . . . . . . . . . . . . . . . . . . . . . . . . Piercing . | . . . . . . . . . . . . . . . . . . . . . . . . . . . Sneak Attacks . | . . . . . . . . . . . . . . . . . . . . . . . . . . . Combat Hostiles . | . . . . . . . . . . . . . . . . . . . . . . . . . . . Follow-up Attacks . | . . . . . . . . . . . . . . . . . . . . . . . . . . . Damage Inflicted 63670 | . 996 42 31 398 1979 6157 642 561 . 1953 286 3021 6655 431 157 . 1357 8118 5732 3194 3914 913 1272 3035 1850 10976 Guns 21237 | . 982 38 31 378 1970 2349 45 15 . 1953 286 2854 . . . . . . . 680 3827 913 312 201 771 3632 Cannons 16260 | . . . . . . 544 137 82 . . . 167 2802 227 65 . 901 5341 591 1682 87 . . 716 1079 1839 Explosions 23689 | . . . . . . 3254 460 464 . . . . 2923 114 92 . 367 2530 4728 732 . . 960 2118 . 4947 Melee . | . . . . . . . . . . . . . . . . . . . . . . . . . . . Ramming 248 | . 14 4 . 20 9 10 . . . . . . 48 . . . . . . 25 . . . . . 118 Kinetic 5869 | . 783 38 31 378 1970 2349 . . . . . 167 . . . . . . . . . . . . . 153 Thermal 32285 | . 199 . . . . 719 . . . 1953 286 2854 3463 317 65 . 990 5912 693 2469 3914 913 430 1039 1850 4219 Explosive 19359 | . . . . . . 2535 460 264 . . . . 2923 . . . 367 1814 4728 583 . . 449 1108 . 4128 Electromagnetic 3408 | . . . . . . 544 182 297 . . . . . 114 92 . . 145 . 42 . . 393 888 . 711 Impact . | . . . . . . . . . . . . . . . . . . . . . . . . . . . Slashing 938 | . . . . . . . . . . . . . 221 . . . . 247 311 75 . . . . . 84 Piercing . | . . . . . . . . . . . . . . . . . . . . . . . . . . . Entropic 1563 | . . . . . . . . . . . . . . . . . . . . . . . . . . 1563 Highest Corruption 35 | . . . . . . 1 1 1 1 . 1 19 21 21 21 21 21 2 33 35 8 10 10 10 1 24 Average Corruption 13 | . . . . . . 1 1 1 1 . 1 17 19 21 21 21 21 1 18 33 3 9 10 10 1 11 Corruption Purged . | . . . . . . . . . . . . . . . . . . . . . . . . . . . Corruption Blocked 25 | . . . . . . . . . . . . . . . . . . . . . . . . 25 . . Effects 423 | . . . . . . 1 1 2 . . . 31 113 31 19 7 40 5 15 52 9 20 24 2 1 50 Message Errors 103 | . . . . . . . . . . . . 8 32 9 3 3 10 . 3 16 2 4 3 1 . 9 Matter Fused 91 | . . . . . . . . . . . . 8 21 5 6 2 11 . 3 13 1 6 6 . 1 8 Heat Flow Errors 53 | . . . . . . . 1 . . . . 6 14 2 2 . 4 1 3 6 1 2 5 . . 6 Energy Discharges 44 | . . . . . . . . 1 . . . 1 7 6 4 2 6 1 2 2 1 3 5 1 . 2 Parts Rejected 3 | . . . . . . . . . . . . . . . . . . . . 1 . . . . . 2 Data Loss (minor) 50 | . . . . . . 1 . 1 . . . 5 13 3 3 . 6 . 1 5 2 2 1 . . 7 Data Loss (major) 14 | . . . . . . . . . . . . . 4 1 1 . 1 1 1 . 2 . 2 . . 1 Misfires 14 | . . . . . . . . . . . . 3 4 2 . . . 1 1 1 . 2 . . . . Alerts 11 | . . . . . . . . . . . . . 1 3 . . . 1 1 2 . 1 1 . . 1 Misdirections 9 | . . . . . . . . . . . . . 2 . . . . . . . . . . . . 7 Weapon Failures 31 | . . . . . . . . . . . . . 15 . . . 2 . . 6 . . 1 . . 7 Overload Shots . | . . . . . . . . . . . . . . . . . . . . . . . . . . . Overflow Damage 1019 | . . . . . . 231 17 9 . . . . 190 . . . 37 180 4 29 . . . 69 . 253 Projectiles 353 | . . . . . . . 17 7 . . . . 83 . . . 37 59 3 29 . . . 10 . 108 Explosions 664 | . . . . . . 231 . 2 . . . . 107 . . . . 121 1 . . . . 59 . 143 Melee 2 | . . . . . . . . . . . . . . . . . . . . . . . . . . 2 Knockbacks 1 | . . . . . . . . . . . . . 1 . . . . . . . . . . . . . Impact 1 | . . . . . . . . . . . . . 1 . . . . . . . . . . . . . Kinetic . | . . . . . . . . . . . . . . . . . . . . . . . . . . . Secondary . | . . . . . . . . . . . . . . . . . . . . . . . . . . . Self-Inflicted Damage 303 | . . . . . . 33 . . . . . . . . . . . 138 . 82 . . . 3 . 47 Shots 9 | . . . . . . 1 . . . . . . . . . . . 4 . 1 . . . 1 . 2 Rammed 37 | . 3 . . 3 3 1 . . . . . . 10 . . . . . . 1 . . . . . 16 Targets Rammed 39 | . 3 1 . 4 3 1 . . . . . . 10 . . . . . . 1 . . . . . 16 Kicked . | . . . . . . . . . . . . . . . . . . . . . . . . . . . Crushed 2 | . . 1 . 1 . . . . . . . . . . . . . . . . . . . . . . Highest Temperature 772 | . 192 16 8 25 194 382 152 118 . . 128 400 429 272 452 . 184 772 197 349 204 118 155 249 326 317 Average Temperature 110 | . 37 8 6 9 75 134 63 73 . . 68 125 100 96 156 . 50 176 101 106 115 39 81 84 156 101 Received Heat Transfer 4176 | . 120 . . 24 171 903 63 63 . 180 . . 285 12 . . 145 869 . 90 144 18 54 102 90 843 Effects 29 | . . . . . . 4 . . . . . 2 . . . . . 23 . . . . . . . . Shutdowns 6 | . . . . . . . . . . . . . . . . . . 6 . . . . . . . . Energy Bleed 6 | . . . . . . . . . . . . 1 . . . . . 5 . . . . . . . . Interference 7 | . . . . . . 4 . . . . . . . . . . . 3 . . . . . . . . Matter Decay 2 | . . . . . . . . . . . . 1 . . . . . 1 . . . . . . . . Short Circuit 2 | . . . . . . . . . . . . . . . . . . 2 . . . . . . . . Damage (minor) 1 | . . . . . . . . . . . . . . . . . . 1 . . . . . . . . Damage (major) 5 | . . . . . . . . . . . . . . . . . . 5 . . . . . . . . Siege Activations 2 | . . . . . . . . . . . . . . . . . . . . . . . . . . 2 Total Turns 17 | . . . . . . . . . . . . . . . . . . . . . . . . . . 17 Longest Duration 14 | . . . . . . . . . . . . . . . . . . . . . . . . . . 14 Robots Corrupted 14 | . . . . . . 4 1 2 . . . . . . . . . . . . . . 1 4 . 2 Combat Hostiles 14 | . . . . . . 4 1 2 . . . . . . . . . . . . . . 1 4 . 2 Parts Fried 17 | . . . . . . 6 . 2 . . . . . . . . . . . . . . 1 8 . . Impact Corruptions 1 | . . . . . . . . . . . . . . . . . . . . . . . . . . 1 Robots Melted 26 | . . . . . . . . . . . . . 11 2 . . 2 1 1 2 . 1 . 2 . 4 Combat Hostiles 25 | . . . . . . . . . . . . . 11 2 . . 2 1 1 2 . 1 . 2 . 3 Parts Melted 140 | . . . . . . . . . . 4 . 3 26 3 . . 3 7 3 14 27 9 1 3 7 30 Heat Transferred 42289 | . 740 . . . . 500 . . . 2800 400 3425 8048 910 100 . 1960 3450 640 1728 5735 1295 631 1124 2183 6620 Parts Sabotaged . | . . . . . . . . . . . . . . . . . . . . . . . . . . . Parts Stolen . | . . . . . . . . . . . . . . . . . . . . . . . . . . . Parts Stripped . | . . . . . . . . . . . . . . . . . . . . . . . . . . . Power Chain Reactions 12 | . . . . . . 1 . . . . . . . . . . . 6 . . . . 1 3 . 1 Missiles Intercepted . | . . . . . . . . . . . . . . . . . . . . . . . . . . . Alert | -11 -10 -10 -10 -9 -8 -7 -7 -7 -7 -6 -6 -6 -6 -6 -6 -6 -5 -5 -5 -5 -4 -4 -4 -4 -3 -3 ------- Run | Scr Mat Min Exi Min Mat Fac Low Low Zio Pro Fac Was Fac Low Low Dat Pro Fac Was Fac Fac Upp Upp War Pro Res Peak Influence 1463 | . 324 122 . 75 340 881 . . . . 223 30 764 . . . . 1463 614 593 652 . . . . 1353 Initial 512 | . . 61 . . 1 154 . . . . 138 30 . . . . . . 512 429 247 . . . . . Average 313 | . 141 60 . 42 104 419 . . . . 148 14 316 . . . . 628 586 475 402 . . . . 461 Maximum Alert Level 4 | . 1 . . . 1 3 . . . . 1 . 3 . . . . 4 2 2 2 . . . . 4 Low Security (%) 44 | 100 84 100 . 100 90 32 . . . . 77 100 23 . . . . 17 . . . . . . . 21 Level 1 22 | . 15 . . . 9 26 . . . . 22 . 44 . . . . 23 . 12 54 . . . . 26 Level 2 21 | . . . . . . 19 . . . . . . 17 . . . . 9 100 87 45 . . . . 37 Level 3 9 | . . . . . . 21 . . . . . . 14 . . . . 40 . . . . . . . 6 Level 4 1 | . . . . . . . . . . . . . . . . . . 9 . . . . . . . 7 Level 5 . | . . . . . . . . . . . . . . . . . . . . . . . . . . . High Security . | . . . . . . . . . . . . . . . . . . . . . . . . . . . Max Security . | . . . . . . . . . . . . . . . . . . . . . . . . . . . Squads Dispatched 66 | . 6 . . . 3 9 . . . 1 1 . 7 . . . . 12 . 4 11 . . . . 12 Investigation 14 | . 5 . . . 1 2 . . . . . . . . . . . 1 . . 1 . . . . 4 Extermination 18 | . . . . . . 3 . . . . . . 4 . . . . 4 . 1 3 . . . . 3 Reinforcement 23 | . 1 . . . 2 4 . . . . 1 . 2 . . . . 4 . 3 4 . . . . 2 Assault 8 | . . . . . . . . . . 1 . . 1 . . . . 3 . . 3 . . . . . Garrison 3 | . . . . . . . . . . . . . . . . . . . . . . . . . . 3 Intercept . | . . . . . . . . . . . . . . . . . . . . . . . . . . . Searches Triggered . | . . . . . . . . . . . . . . . . . . . . . . . . . . . Data Miner Redirects 8 | . . . . . . . . . . . . . . . . . . 1 . . 3 . . . . 4 Construction Impeded 6 | . . . . . . 1 . . . . . . 1 . . . . 2 . 1 . . . . . 1 Haulers Reinforced . | . . . . . . . . . . . . . . . . . . . . . . . . . . . Active Scanning Responses 2 | . . . . . . . . . . . . . . . . . . . . . . . . . . 2 Cargo Convoy Interrupts 3 | . . . . . . 1 . . . . . . 1 . . . . . . . . . . . . 1 Stealth | -11 -10 -10 -10 -9 -8 -7 -7 -7 -7 -6 -6 -6 -6 -6 -6 -6 -5 -5 -5 -5 -4 -4 -4 -4 -3 -3 --------- Run | Scr Mat Min Exi Min Mat Fac Low Low Zio Pro Fac Was Fac Low Low Dat Pro Fac Was Fac Fac Upp Upp War Pro Res Distress Signals 18 | . 1 . . . 4 2 . . . . . . . . . . . 3 . . 3 . . . . 5 Communications Jammed 4 | . . . . . . . . . . . . . . . . . . . . . . . . . . 4 Distress Signals 1 | . . . . . . . . . . . . . . . . . . . . . . . . . . 1 Times Spotted 527 | . 16 3 . 5 31 44 7 7 . 23 12 6 51 8 3 . 12 55 6 13 34 11 16 65 5 94 Peak Tracking Total 24 | . 4 1 2 2 8 13 4 4 . 10 7 3 11 3 3 . 5 9 3 3 7 3 6 16 1 24 Tactical Retreats 20 | . . . . . . 1 . . . 1 . . . . . . . 1 . 1 4 . 4 2 . 6 Traps | -11 -10 -10 -10 -9 -8 -7 -7 -7 -7 -6 -6 -6 -6 -6 -6 -6 -5 -5 -5 -5 -4 -4 -4 -4 -3 -3 ------- Run | Scr Mat Min Exi Min Mat Fac Low Low Zio Pro Fac Was Fac Low Low Dat Pro Fac Was Fac Fac Upp Upp War Pro Res Traps Triggered 19 | . 2 . . . 2 . . . . . 2 . 1 . 2 . . 4 . 1 1 . . 1 . 3 Indirectly 1 | . . . . . . . . . . . . . . . . . . . . . . . . 1 . . Trap Hack Attempts . | . . . . . . . . . . . . . . . . . . . . . . . . . . . Triggered . | . . . . . . . . . . . . . . . . . . . . . . . . . . . Disarmed . | . . . . . . . . . . . . . . . . . . . . . . . . . . . Reprogrammed . | . . . . . . . . . . . . . . . . . . . . . . . . . . . Reused . | . . . . . . . . . . . . . . . . . . . . . . . . . . . Traps Extracted . | . . . . . . . . . . . . . . . . . . . . . . . . . . . Installed . | . . . . . . . . . . . . . . . . . . . . . . . . . . . Triggered 12 | . . . . . . . . . . . . . . . . . 1 . . . . . 1 10 . . Machines | -11 -10 -10 -10 -9 -8 -7 -7 -7 -7 -6 -6 -6 -6 -6 -6 -6 -5 -5 -5 -5 -4 -4 -4 -4 -3 -3 ---------- Run | Scr Mat Min Exi Min Mat Fac Low Low Zio Pro Fac Was Fac Low Low Dat Pro Fac Was Fac Fac Upp Upp War Pro Res Machines Disabled 36 | . . . . . . 10 . . . . 1 . 5 . . . . 12 . 3 . . . 1 . 4 Max in Single Turn 7 | . . . . . . 7 . . . . . . 1 . . . . 3 . 2 . . . 1 . 1 Garrison Access 2 | . . . . . . . . . . . . . . . . . . 2 . . . . . . . . Machines Sabotaged . | . . . . . . . . . . . . . . . . . . . . . . . . . . . Garrisons Compromised . | . . . . . . . . . . . . . . . . . . . . . . . . . . . Overloaded Fab Kills . | . . . . . . . . . . . . . . . . . . . . . . . . . . . Hacking | -11 -10 -10 -10 -9 -8 -7 -7 -7 -7 -6 -6 -6 -6 -6 -6 -6 -5 -5 -5 -5 -4 -4 -4 -4 -3 -3 --------- Run | Scr Mat Min Exi Min Mat Fac Low Low Zio Pro Fac Was Fac Low Low Dat Pro Fac Was Fac Fac Upp Upp War Pro Res Machines Accessed 27 | . 4 1 2 . 3 5 . . . . . . . 1 1 4 . 3 . . 1 . . 2 . . Terminals 10 | . 4 1 . . 2 3 . . . . . . . . . . . . . . . . . . . . Fabricators 3 | . . . . . . 1 . . . . . . . . . . . 1 . . 1 . . . . . Repair Stations 1 | . . . . . 1 . . . . . . . . . . . . . . . . . . . . . Recycling Units 2 | . . . . . . 1 . . . . . . . . . . . 1 . . . . . . . . Scanalyzers 1 | . . . . . . . . . . . . . . . . . . 1 . . . . . . . . Garrison Access . | . . . . . . . . . . . . . . . . . . . . . . . . . . . Total Hacks 100 | . 15 4 2 . 18 10 . . . . . . . 1 1 29 . 12 . . 2 . . 6 . . Successful 64 | . 2 1 2 . 12 3 . . . . . . . 1 1 29 . 7 . . . . . 6 . . Failed 35 | . 13 2 . . 6 7 . . . . . . . . . . . 5 . . 2 . . . . . Catastrophic 6 | . 2 . . . 1 2 . . . . . . . . . . . 1 . . . . . . . . Database Lockouts 1 | . . 1 . . . . . . . . . . . . . . . . . . . . . . . . Manual 93 | . 13 4 1 . 9 7 . . . . 6 . 15 . . . . 20 . 6 8 . . 1 . 3 Terminals 38 | . 15 4 . . 11 8 . . . . . . . . . . . . . . . . . . . . Fabricators 9 | . . . . . . 1 . . . . . . . . . . . 6 . . 2 . . . . . Repair Stations 7 | . . . . . 7 . . . . . . . . . . . . . . . . . . . . . Recycling Units 2 | . . . . . . 1 . . . . . . . . . . . 1 . . . . . . . . Scanalyzers 5 | . . . . . . . . . . . . . . . . . . 5 . . . . . . . . Garrison Access . | . . . . . . . . . . . . . . . . . . . . . . . . . . . Terminal Hacks 49 | . 2 1 2 . 6 1 . . . . . . . 1 1 29 . . . . . . . 6 . . Record 12 | . . . 1 . . . . . . . . . . . . 11 . . . . . . . . . . Part Schematic 10 | . . . . . . . . . . . . . . . . 10 . . . . . . . . . . Robot Schematic 5 | . . . . . . . . . . . . . . . . 5 . . . . . . . . . . Robot Analysis 5 | . 1 1 . . 3 . . . . . . . . . . . . . . . . . . . . . Prototype ID Bank 8 | . . . . . . . . . . . . . . . . 3 . . . . . . . 5 . . Open Door 3 | . . . . . . . . . . . . . . 1 1 . . . . . . . . 1 . . Branch Access Points 3 | . 1 . . . 1 1 . . . . . . . . . . . . . . . . . . . . Repair Station Index 1 | . . . . . 1 . . . . . . . . . . . . . . . . . . . . . Hauler Manifests 1 | . . . . . 1 . . . . . . . . . . . . . . . . . . . . . EX-Prototype ID Bank 1 | . . . 1 . . . . . . . . . . . . . . . . . . . . . . . Fabricator Hacks . | . . . . . . . . . . . . . . . . . . . . . . . . . . . Repair Station Hacks 6 | . . . . . 6 . . . . . . . . . . . . . . . . . . . . . Scan Component 3 | . . . . . 3 . . . . . . . . . . . . . . . . . . . . . Repair 3 | . . . . . 3 . . . . . . . . . . . . . . . . . . . . . Recycling Unit Hacks . | . . . . . . . . . . . . . . . . . . . . . . . . . . . Scanalyzer 3 | . . . . . . . . . . . . . . . . . . 3 . . . . . . . . Insert Component 2 | . . . . . . . . . . . . . . . . . . 2 . . . . . . . . Analyze 1 | . . . . . . . . . . . . . . . . . . 1 . . . . . . . . Garrison Access Hacks . | . . . . . . . . . . . . . . . . . . . . . . . . . . . Unauthorized Hacks 6 | . . . . . . 2 . . . . . . . . . . . 4 . . . . . . . . Terminals 1 | . . . . . . 1 . . . . . . . . . . . . . . . . . . . . Botnet 1 | . . . . . . 1 . . . . . . . . . . . . . . . . . . . . Fabricators 3 | . . . . . . . . . . . . . . . . . . 3 . . . . . . . . Report 1 | . . . . . . . . . . . . . . . . . . 1 . . . . . . . . Liberate 1 | . . . . . . . . . . . . . . . . . . 1 . . . . . . . . Haulers 1 | . . . . . . . . . . . . . . . . . . 1 . . . . . . . . Repair Stations . | . . . . . . . . . . . . . . . . . . . . . . . . . . . Recycling Units 2 | . . . . . . 1 . . . . . . . . . . . 1 . . . . . . . . Tunnel 2 | . . . . . . 1 . . . . . . . . . . . 1 . . . . . . . . Scanalyzers . | . . . . . . . . . . . . . . . . . . . . . . . . . . . Garrison Access . | . . . . . . . . . . . . . . . . . . . . . . . . . . . Data Cores Recovered . | . . . . . . . . . . . . . . . . . . . . . . . . . . . Used . | . . . . . . . . . . . . . . . . . . . . . . . . . . . Hacking Detections 14 | . 4 1 . . 3 4 . . . . . . . . . . . 1 . . 1 . . . . . Full Trace Events 6 | . 4 . . . 1 1 . . . . . . . . . . . . . . . . . . . . Feedback Events . | . . . . . . . . . . . . . . . . . . . . . . . . . . . Feedback Blocked . | . . . . . . . . . . . . . . . . . . . . . . . . . . . Robot Schematics Acquired 13 | . . . . . . . . . 3 . . . . . . 5 . 5 . . . . . . . . Robots Built . | . . . . . . . . . . . . . . . . . . . . . . . . . . . Authchips . | . . . . . . . . . . . . . . . . . . . . . . . . . . . Time . | . . . . . . . . . . . . . . . . . . . . . . . . . . . Total Robot Build Rating . | . . . . . . . . . . . . . . . . . . . . . . . . . . . Part Schematics Acquired 47 | . . . . . . . . . 14 . 10 . . . . 10 . 13 . . . . . . . . Parts Built . | . . . . . . . . . . . . . . . . . . . . . . . . . . . Authchips . | . . . . . . . . . . . . . . . . . . . . . . . . . . . Time . | . . . . . . . . . . . . . . . . . . . . . . . . . . . Total Part Build Rating . | . . . . . . . . . . . . . . . . . . . . . . . . . . . Parts Repaired 3 | . . . . . 3 . . . . . . . . . . . . . . . . . . . . . Time 78 | . . . . . 78 . . . . . . . . . . . . . . . . . . . . . Parts Recycled . | . . . . . . . . . . . . . . . . . . . . . . . . . . . Recycled Matter . | . . . . . . . . . . . . . . . . . . . . . . . . . . . Retrieved Matter . | . . . . . . . . . . . . . . . . . . . . . . . . . . . Retrieved Components . | . . . . . . . . . . . . . . . . . . . . . . . . . . . Parts Scanalyzed 1 | . . . . . . . . . . . . . . . . . . 1 . . . . . . . . Part Schematics Acquired . | . . . . . . . . . . . . . . . . . . . . . . . . . . . Parts Damaged . | . . . . . . . . . . . . . . . . . . . . . . . . . . . Bothacking | -11 -10 -10 -10 -9 -8 -7 -7 -7 -7 -6 -6 -6 -6 -6 -6 -6 -5 -5 -5 -5 -4 -4 -4 -4 -3 -3 ------------ Run | Scr Mat Min Exi Min Mat Fac Low Low Zio Pro Fac Was Fac Low Low Dat Pro Fac Was Fac Fac Upp Upp War Pro Res Used RIF Installer . | . . . . . . . . . . . . . . . . . . . . . . . . . . . Robots Hacked . | . . . . . . . . . . . . . . . . . . . . . . . . . . . Non-combat . | . . . . . . . . . . . . . . . . . . . . . . . . . . . Combat . | . . . . . . . . . . . . . . . . . . . . . . . . . . . Robot Hacks Applied . | . . . . . . . . . . . . . . . . . . . . . . . . . . . Relay Couplers Released 3 | . . . . . . . . . . . . . . . . . . 3 . . . . . . . . Machine Destruction 3 | . . . . . . . . . . . . . . . . . . 3 . . . . . . . . Fabnet Peak Effective % . | . . . . . . . . . . . . . . . . . . . . . . . . . . . Robots Rewired 2 | . . . . . . . . . . 2 . . . . . . . . . . . . . . . . Allies Hacked . | . . . . . . . . . . . . . . . . . . . . . . . . . . . Hacks Repelled . | . . . . . . . . . . . . . . . . . . . . . . . . . . . Allies | -11 -10 -10 -10 -9 -8 -7 -7 -7 -7 -6 -6 -6 -6 -6 -6 -6 -5 -5 -5 -5 -4 -4 -4 -4 -3 -3 -------- Run | Scr Mat Min Exi Min Mat Fac Low Low Zio Pro Fac Was Fac Low Low Dat Pro Fac Was Fac Fac Upp Upp War Pro Res Total Allies 20 | . . . . 3 . . . . 7 2 . . 4 . . . 1 . . . . . . . . 3 Largest Group 7 | . . . . 3 2 . . . 7 7 1 1 3 . . . 1 . . . . . . . . 3 Highest-Rated Group 288 | . . . . 40 32 . . . 226 226 41 41 210 . . . 96 . . . . . . . . 288 Highest-Rated Ally 135 | . . . . 16 16 . . . 41 41 41 41 135 . . . 96 . . . . . . . . 96 Zionite Dispatches 3 | . . . . . . . . . . . . . 2 . . . . . . . . . . . . 1 Light 2 | . . . . . . . . . . . . . 1 . . . . . . . . . . . . 1 Hero 1 | . . . . . . . . . . . . . 1 . . . . . . . . . . . . . Total Orders . | . . . . . . . . . . . . . . . . . . . . . . . . . . . Ally Attacks 171 | . . . . . 20 . . . . 69 9 . 38 . . . 12 . . . . . . . . 23 Total Damage 4590 | . . . . . 219 . . . . 2128 101 . 1097 . . . 223 . . . . . . . . 822 Kills 41 | . . . . . 3 . . . . 16 1 . 10 . . . 3 . . . . . . . . 8 Allies Corrupted . | . . . . . . . . . . . . . . . . . . . . . . . . . . . Allies Melted . | . . . . . . . . . . . . . . . . . . . . . . . . . . . Intel | -11 -10 -10 -10 -9 -8 -7 -7 -7 -7 -6 -6 -6 -6 -6 -6 -6 -5 -5 -5 -5 -4 -4 -4 -4 -3 -3 ------- Run | Scr Mat Min Exi Min Mat Fac Low Low Zio Pro Fac Was Fac Low Low Dat Pro Fac Was Fac Fac Upp Upp War Pro Res Robot Analysis Total 5 | . 1 1 . . 3 . . . . . . . . . . . . . . . . . . . . . Derelict Logs Recovered 8 | . . 1 . 1 . . . 1 2 . . . . . . . 1 . . . . 1 1 . . . Drone Launches . | . . . . . . . . . . . . . . . . . . . . . . . . . . . Drone Recoveries . | . . . . . . . . . . . . . . . . . . . . . . . . . . . Zionite Intel Received 8 | . . . . . . . . . . . 1 . 2 . . . . 3 . 1 1 . . . . . Branch Access 1 | . . . . . . . . . . . . . . . . . . . . . 1 . . . . . Emergency Access 1 | . . . . . . . . . . . . . . . . . . 1 . . . . . . . . Component Schematics 1 | . . . . . . . . . . . . . . . . . . 1 . . . . . . . . Prototype Schematics 1 | . . . . . . . . . . . 1 . . . . . . . . . . . . . . . Unaware Schematics 1 | . . . . . . . . . . . . . . . . . . 1 . . . . . . . . Trap Installations 2 | . . . . . . . . . . . . . 1 . . . . . . 1 . . . . . . Active Garrisons 1 | . . . . . . . . . . . . . 1 . . . . . . . . . . . . . Exploration | -11 -10 -10 -10 -9 -8 -7 -7 -7 -7 -6 -6 -6 -6 -6 -6 -6 -5 -5 -5 -5 -4 -4 -4 -4 -3 -3 ------------- Run | Scr Mat Min Exi Min Mat Fac Low Low Zio Pro Fac Was Fac Low Low Dat Pro Fac Was Fac Fac Upp Upp War Pro Res Turns Passed 23061 | 67 780 631 795 1020 1132 1336 264 463 1715 882 501 849 2129 662 493 172 859 1478 367 971 1156 630 624 1386 443 1256 Spaces Moved 11482 | 49 296 259 331 398 365 750 183 342 1226 531 327 430 939 337 297 120 476 618 187 415 472 345 312 680 225 572 Core 154 | 23 . . . . . . . . . . . . . . . . . . . . . . . . . 131 Treads 4532 | 26 296 259 331 398 365 . . . . . . . 6 . . . . . . 376 472 345 312 680 225 441 Legs 2 | . . . . . . . . . . . . . . . . . . 2 . . . . . . . . Wheels 6794 | . . . . . . 750 183 342 1226 531 327 430 933 337 297 120 476 616 187 39 . . . . . . Hover . | . . . . . . . . . . . . . . . . . . . . . . . . . . . Flight . | . . . . . . . . . . . . . . . . . . . . . . . . . . . Fastest Speed 50 | 50 160 240 240 240 240 130 130 130 115 145 145 130 160 175 145 130 130 160 125 160 168 168 168 168 170 50 Average Speed 169 | 108 197 240 240 240 240 130 130 130 136 145 145 169 179 186 159 130 156 173 155 193 199 168 168 168 170 146 Slowest Speed 330 | 160 240 240 240 240 240 145 130 130 145 145 145 175 320 190 190 145 175 330 160 247 247 168 168 170 170 250 Overloaded Moves . | . . . . . . . . . . . . . . . . . . . . . . . . . . . Propulsion Burnouts . | . . . . . . . . . . . . . . . . . . . . . . . . . . . Robots Hopped . | . . . . . . . . . . . . . . . . . . . . . . . . . . . Cave-ins Triggered . | . . . . . . . . . . . . . . . . . . . . . . . . . . . Exploration Rate (%) 49 | 5 52 74 70 81 35 26 36 49 89 68 8 100 29 50 51 68 61 23 82 10 12 57 49 72 45 31 Regions Visited 26 Branch Regions 15 Pre-discovered Areas 6 | . . . 1 1 . 1 . . 1 . . . . . . 1 . 1 . . . . . . . . Known Exits Taken 5 | . 1 . . . . 1 . . . . . . . . . . . . . . 1 . 1 . 1 . Unknown Exits Taken 17 | 1 . 1 1 1 1 . 1 1 1 1 . . 1 1 1 1 1 . . 1 . 1 . 1 . . Scrap Searched 26 | . . 1 . 3 . . 2 1 4 5 . . . 2 4 . 1 . . . . 1 1 . 1 . Spaces Dug 33 | . . . . . . . . . . . . . 1 . . . 14 . . . . . 3 4 . 11 Terrain Destroyed 802 | . 7 . . . . 96 23 11 . . . . 60 11 4 . 20 215 152 49 1 . 51 33 5 64 Melee . | . . . . . . . . . . . . . . . . . . . . . . . . . . . Projectile 164 | . . . . . . 1 . . . . . . 34 11 4 . 6 57 4 8 1 . . 16 5 17 AOE 638 | . 7 . . . . 95 23 11 . . . . 26 . . . 14 158 148 41 . . 51 17 . 47 Terrain Rammed . | . . . . . . . . . . . . . . . . . . . . . . . . . . . Walls Destroyed . | . . . . . . . . . . . . . . . . . . . . . . . . . . . Machines Disabled . | . . . . . . . . . . . . . . . . . . . . . . . . . . . Actions | -11 -10 -10 -10 -9 -8 -7 -7 -7 -7 -6 -6 -6 -6 -6 -6 -6 -5 -5 -5 -5 -4 -4 -4 -4 -3 -3 --------- Run | Scr Mat Min Exi Min Mat Fac Low Low Zio Pro Fac Was Fac Low Low Dat Pro Fac Was Fac Fac Upp Upp War Pro Res Total 13525 | 63 390 263 331 425 523 947 196 353 1275 581 340 494 1188 351 310 139 548 814 226 509 571 363 379 862 249 835 Wait 591 | . 2 . . . 79 40 . . 20 5 2 14 96 3 3 . 40 58 1 8 16 6 38 91 2 67 Move 11458 | 48 295 258 330 397 364 749 182 341 1225 530 327 429 938 336 296 119 475 618 186 414 471 344 311 679 224 572 Hop . | . . . . . . . . . . . . . . . . . . . . . . . . . . . Pick Up 148 | 10 17 . . 3 9 15 . 2 7 1 3 2 17 1 2 6 1 10 2 9 6 . . 12 1 12 Fast Attach 116 | . 3 . . . 6 15 . . 3 . . 9 8 . . 4 5 14 3 14 9 . 3 6 . 14 Attach 110 | 5 2 1 . . 4 15 4 1 5 . 2 3 10 . 2 . 3 8 7 8 1 . 2 7 1 19 Detach 31 | . . . . . . 3 . 2 4 . . 6 2 . . . 3 . 2 3 . . 1 1 . 4 Swap 52 | . 2 . . . 3 5 . 1 1 . . 1 12 2 1 . 2 2 . 1 2 . 1 10 1 5 Drop 162 | . 8 . . . 7 19 1 . 10 1 1 7 22 1 2 10 3 12 1 9 13 . 3 12 . 20 Fire 784 | . 58 3 1 21 48 85 9 6 . 21 5 23 73 8 4 . 16 84 24 42 53 13 20 41 20 106 Melee . | . . . . . . . . . . . . . . . . . . . . . . . . . . . Ram 12 | . . . . . . 1 . . . . . . . . . . . . . . . . . . . 11 Kick . | . . . . . . . . . . . . . . . . . . . . . . . . . . . Crush 27 | . 3 1 . 4 3 . . . . . . . 10 . . . . . . 1 . . . . . 5 Escape Stasis 8 | . . . . . . . . . . . . . . . . . . 8 . . . . . . . . Rewire 26 | . . . . . . . . . . 23 . . . . . . . . . . . . . 3 . . Trap . | . . . . . . . . . . . . . . . . . . . . . . . . . . . Miscellaneous . | . . . . . . . . . . . . . . . . . . . . . . . . . . . Route ------- -11/Scrapyard -10/Materials -10/Mines (discovered 2 exits: [*Mat] / *Exi) -10/Exiles -9/Mines -8/Materials -7/Factory (discovered 3 exits: Sto / *Low x2) -7/Lower Caves -7/Lower Caves (discovered 2 exits: *Fac / [*Zio]) -7/Zion -6/Proximity Caves -6/Factory -6/Waste -6/Factory -6/Lower Caves -6/Lower Caves -6/Data Miner -5/Proximity Caves -5/Factory (discovered 2 exits: *Fac x2) -5/Waste -5/Factory -4/Factory (discovered 5 exits: *Upp x2 / Ext x2 / Arm) -4/Upper Caves -4/Upper Caves (discovered 2 exits: *Res / *War) -4/Warlord -3/Proximity Caves -3/Research History --------- Turn | Location | Event 5 | -11/Scrapyard | Discovered new exit (range 14) 68 | -11/Scrapyard | Entered Materials 317 | -10/Materials | Build established: Mutant 371 | -10/Materials | Identified exit to Mines 848 | -10/Materials | Entered Mines 858 | -10/Mines | Central database locked down 1299 | -10/Mines | Discovered new exit (range 11) 1469 | -10/Mines | Deemed a non-threat by the Exiles lab entrance 1469 | -10/Mines | Discovered new exit (range 5) 1479 | -10/Mines | Entered Exiles 1535 | -10/Exiles | Met 8R-AWN 1578 | -10/Exiles | Met EX-HEX 1647 | -10/Exiles | Met EX-BIN 1679 | -10/Exiles | Met EX-DEC 1691 | -10/Exiles | Learned location of Zion (-7) 1991 | -10/Exiles | Aligned with FarCom system 1993 | -10/Exiles | Given EX-Vault access code 2048 | -10/Exiles | Opened EX-Vault 2103 | -10/Exiles | Warned to stay clear of 0b10 Research branches 2145 | -10/Exiles | Exiles lab attacked by MAIN.C 2252 | -10/Exiles | Discovered new exit (range 10) 2270 | -10/Exiles | Attacked by the Exiles 2274 | -10/Exiles | Entered Mines 2280 | -9/Mines | Met a Derelict bent on vengeance 2505 | -9/Mines | Received a Rocket Launcher from a helpful Derelict 3011 | -9/Mines | Assisted by bots powering up and referring to "LRC-V3" 3088 | -9/Mines | Discovered new exit (range 9) 3294 | -9/Mines | Entered Materials 3294 | -8/Materials | Accompanied by 2 allies 3294 | -8/Materials | Evolved 4 slots: Propulsion x1, Utility x1, Weapon x2 3605 | -8/Materials | Build established: Skirmisher 3880 | -8/Materials | Repaired Lgt. Treads 3907 | -8/Materials | Repaired Lgt. Treads 3934 | -8/Materials | Repaired Lgt. Treads 4215 | -8/Materials | Build established: Scavenger-Skirmisher 4267 | -8/Materials | Discovered new exit (range 15) 4366 | -8/Materials | Destroyed 7 combat bots 4426 | -8/Materials | Entered Factory 4426 | -7/Factory | Evolved 2 slots: Propulsion x1, Utility x1 4427 | -7/Factory | Identified exit to Storage 5089 | -7/Factory | Identified exit to Lower Caves 5258 | -7/Factory | Cargo convoy interrupted 5288 | -7/Factory | Destroyed 8 combat bots 5308 | -7/Factory | Found Prototype Launcher 5310 | -7/Factory | Identified Tesla Bomb Launcher 5320 | -7/Factory | Lost 5 parts (2n3w) 5372 | -7/Factory | Found Prototype Processor 5372 | -7/Factory | Identified Exp. Signal Interpreter 5393 | -7/Factory | Lost 5 parts (1n3u1w) 5441 | -7/Factory | Found Prototype Protection 5679 | -7/Factory | Core integrity fell below 50% 5762 | -7/Factory | Entered Lower Caves 5958 | -7/Lower Caves | Encountered a Warlord checkpoint 6008 | -7/Lower Caves | Discovered new exit (range 15) 6026 | -7/Lower Caves | Entered another Lower Caves area 6034 | -7/Lower Caves | Discovered new exit (range 6) 6038 | -7/Lower Caves | Encountered a Warlord checkpoint 6055 | -7/Lower Caves | Build established: Mutant 6211 | -7/Lower Caves | Learned Factory stockpile data 6482 | -7/Lower Caves | Discovered new exit (range 6) 6489 | -7/Lower Caves | Entered Zion 6535 | -7/Zion | System corruption cleaned by Quarantine Array 6616 | -7/Zion | Discovered new exit (range 13) 6795 | -7/Zion | Learned Factory stockpile data 6902 | -7/Zion | Learned Factory stockpile data 7001 | -7/Zion | Found Prototype Energy Gun 7001 | -7/Zion | Identified Storm Laser 7030 | -7/Zion | Given A8's code to call for help 7288 | -7/Zion | Build established: Gunner 7348 | -7/Zion | Learned location of Warlord (-4) 7366 | -7/Zion | Found Prototype Special Weapon 7369 | -7/Zion | Found Prototype Special Weapon 7371 | -7/Zion | Found Prototype Special Weapon 7374 | -7/Zion | Identified Active Cooling Armor 7375 | -7/Zion | Found Prototype Special Weapon 7704 | -7/Zion | Visited the Megawrench Repair Shop 7704 | -7/Zion | Megawrench repaired 9 parts 7929 | -7/Zion | Imprinted 7932 | -7/Zion | Declared Zion's savior 8083 | -7/Zion | Gained Derelict followers 8204 | -7/Zion | Entered Proximity Caves 8204 | -6/Proximity Caves | Accompanied by 7 allies 8310 | -6/Proximity Caves | Attracted the attention of an 0b10 outpost 8513 | -6/Proximity Caves | Spotted B-75 Beast 8535 | -6/Proximity Caves | Allies destroyed B-75 Beast 9066 | -6/Proximity Caves | Discovered new exit (range 10) 9067 | -6/Proximity Caves | Attracted the attention of an 0b10 checkpoint 9086 | -6/Proximity Caves | Entered Factory 9086 | -6/Factory | Accompanied by 1 ally 9086 | -6/Factory | Evolved 2 slots: Utility x2 9393 | -6/Factory | Retrieved Zion intel report: Prototype Schematics 9587 | -6/Factory | Sucked down chute 9587 | -6/Factory | Entered Waste 9602 | -6/Waste | EMP discharged 9620 | -6/Waste | 1 allies followed down the chute 9622 | -6/Waste | Spotted C-40 Crusher 9622 | -6/Waste | Spotted C-40 Crusher 9628 | -6/Waste | Destroyed C-40 Crusher 9644 | -6/Waste | Destroyed C-40 Crusher 9660 | -6/Waste | Spotted C-40 Crusher 9660 | -6/Waste | Spotted C-40 Crusher 9685 | -6/Waste | Spotted C-40 Crusher 9698 | -6/Waste | Destroyed C-40 Crusher 9702 | -6/Waste | EMP discharged 9702 | -6/Waste | System corruption reached 10% 9708 | -6/Waste | Destroyed C-40 Crusher 9725 | -6/Waste | Crushed by Compactor (0 parts destroyed, 1 dropped) 9728 | -6/Waste | Crushed by Compactor (0 parts destroyed, 1 dropped) 9731 | -6/Waste | Crushed by Compactor (0 parts destroyed, 1 dropped) 9737 | -6/Waste | Crushed by Compactor (0 parts destroyed, 1 dropped) 9740 | -6/Waste | Destroyed C-40 Crusher 9795 | -6/Waste | Found Damper Plating 9802 | -6/Waste | EMP discharged 9877 | -6/Waste | Spotted C-40 Crusher 9892 | -6/Waste | Destroyed C-40 Crusher 9902 | -6/Waste | EMP discharged 10002 | -6/Waste | EMP discharged 10102 | -6/Waste | EMP discharged 10148 | -6/Waste | Discovered new exit (range 12) 10186 | -6/Waste | Build established: Tank 10202 | -6/Waste | EMP discharged 10302 | -6/Waste | EMP discharged 10402 | -6/Waste | EMP discharged 10436 | -6/Waste | Entered Factory 10605 | -6/Factory | Zion Light squad teleported in 10764 | -6/Factory | Found Prototype Protection 10776 | -6/Factory | Identified Zio. Weapon Casing 10798 | -6/Factory | Build established: Pyromaniac-Gunner 10800 | -6/Factory | Found Zio. Weapon Casing 10843 | -6/Factory | Zion hero teleported in (AD-0RF) 10856 | -6/Factory | Identified RU-N14's Throwing Claymores (x4) 11367 | -6/Factory | Destroyed AD-0RF 11374 | -6/Factory | Found Prototype Special Weapon 11386 | -6/Factory | Identified AD-0RF's Magmablaster 11481 | -6/Factory | Retrieved Zion intel report: Trap Installations 11492 | -6/Factory | Discovered new exit (range 6) 11904 | -6/Factory | Retrieved Zion intel report: Active Garrisons 11911 | -6/Factory | Terminal network hard line cut 12241 | -6/Factory | Cargo convoy interrupted 12282 | -6/Factory | Destroyed 10 combat bots 12283 | -6/Factory | Found Prototype Device 12284 | -6/Factory | Identified Adv. EM Disruption Field 12536 | -6/Factory | First assault squad dispatched 12565 | -6/Factory | Entered Lower Caves 12843 | -6/Lower Caves | Found Prototype Device 12906 | -6/Lower Caves | Encountered a Warlord checkpoint 12945 | -6/Lower Caves | Attracted the attention of an 0b10 checkpoint 13052 | -6/Lower Caves | Discovered new exit (range 15) 13227 | -6/Lower Caves | Entered another Lower Caves area 13667 | -6/Lower Caves | Discovered new exit (range 15) 13720 | -6/Lower Caves | Entered Data Miner 13723 | -6/Data Miner | Discovered new exit (range 6) 13806 | -6/Data Miner | Met Data Miner 13843 | -6/Data Miner | Learned location of Section 7 (-2) 13843 | -6/Data Miner | Acquired the access code to Warlord's prototype stash 13852 | -6/Data Miner | Received God Mode back door access code from Data Miner 13892 | -6/Data Miner | Entered Proximity Caves 13946 | -5/Proximity Caves | Escorted by Enhanced Grunt 13987 | -5/Proximity Caves | Identified Heart of Steel 14076 | -5/Proximity Caves | Learned Factory stockpile data 14733 | -5/Proximity Caves | Discovered new exit (range 11) 14751 | -5/Proximity Caves | Entered Factory 14751 | -5/Factory | Evolved 2 slots: Power x1, Utility x1 14950 | -5/Factory | Retrieved Zion intel report: Emergency Access 14987 | -5/Factory | Discovered new exit (range 15) 14997 | -5/Factory | Retrieved Zion intel report: Unaware Schematics 15449 | -5/Factory | Destroyed 8 combat bots 15503 | -5/Factory | Spotted B-75 Beast 15714 | -5/Factory | Retrieved Zion intel report: Component Schematics 15856 | -5/Factory | Found Imp. Powered Armor 15951 | -5/Factory | First assault squad dispatched 15972 | -5/Factory | Incoming assault squad redirected 16215 | -5/Factory | Discovered new exit (range 8) 16229 | -5/Factory | Sucked down chute 16229 | -5/Factory | Entered Waste 16241 | -5/Waste | Spotted C-40 Crusher 16244 | -5/Waste | EMP discharged 16252 | -5/Waste | Spotted C-40 Crusher 16257 | -5/Waste | Spotted C-40 Crusher 16271 | -5/Waste | Crushed by Compactor (1 part destroyed, 1 dropped) 16274 | -5/Waste | Crushed by Compactor (1 part destroyed, 1 dropped) 16275 | -5/Waste | Destroyed C-40 Crusher 16281 | -5/Waste | Destroyed C-40 Crusher 16287 | -5/Waste | Destroyed C-40 Crusher 16305 | -5/Waste | Lost 3 parts (1u2w) 16310 | -5/Waste | Spotted C-40 Crusher 16314 | -5/Waste | Spotted C-40 Crusher 16321 | -5/Waste | Spotted C-40 Crusher 16323 | -5/Waste | Crushed by Compactor (1 part destroyed, 2 dropped) 16338 | -5/Waste | Destroyed C-40 Crusher 16344 | -5/Waste | EMP discharged 16344 | -5/Waste | System corruption reached 10% 16364 | -5/Waste | Destroyed C-40 Crusher 16372 | -5/Waste | Destroyed C-40 Crusher 16444 | -5/Waste | EMP discharged 16544 | -5/Waste | EMP discharged 16544 | -5/Waste | System corruption reached 30% 16574 | -5/Waste | Discovered new exit (range 11) 16575 | -5/Waste | Build established: Scavenger-Mutant 16596 | -5/Waste | Entered Factory 16697 | -5/Factory | Lost 3 parts (1p1n1u) 16874 | -5/Factory | Discovered new exit (range 13) 17009 | -5/Factory | Retrieved Zion intel report: Trap Installations 17410 | -5/Factory | Build established: Mutant 17564 | -5/Factory | Found Prototype Device 17567 | -5/Factory | Entered another Factory area 17567 | -4/Factory | Evolved 2 slots: Propulsion x2 17654 | -4/Factory | Discovered new exit (range 3) 17845 | -4/Factory | Build established: Scavenger-Gunner 18027 | -4/Factory | Incoming investigation squad redirected 18436 | -4/Factory | Retrieved Zion intel report: Branch Access 18436 | -4/Factory | Identified exit to Upper Caves 18436 | -4/Factory | Identified exit to Extension 18436 | -4/Factory | Identified exit to Armory 18567 | -4/Factory | First assault squad dispatched 18584 | -4/Factory | Incoming assault squad redirected 18596 | -4/Factory | Incoming assault squad redirected 18723 | -4/Factory | Entered Upper Caves 18725 | -4/Upper Caves | Attracted the attention of an 0b10 checkpoint 18903 | -4/Upper Caves | System corruption reached 10% 19339 | -4/Upper Caves | Discovered new exit (range 8) 19353 | -4/Upper Caves | Entered another Upper Caves area 19384 | -4/Upper Caves | Identified Active Sensor Suite 19402 | -4/Upper Caves | Discovered new exit (range 5) 19409 | -4/Upper Caves | Identified exit to Research 19690 | -4/Upper Caves | Build established: Scavenger-Skirmisher 19881 | -4/Upper Caves | Attracted the attention of an 0b10 checkpoint 19930 | -4/Upper Caves | Destroyed 10 combat bots 19954 | -4/Upper Caves | Discovered new exit (range 13) 19975 | -4/Upper Caves | Identified exit to Warlord 19977 | -4/Upper Caves | Entered Warlord 20038 | -4/Warlord | System corruption cleaned by Quarantine Array 20453 | -4/Warlord | Visited the Vortex Lab 20463 | -4/Warlord | Warlord's base attacked by MAIN.C 20466 | -4/Warlord | Found Prototype Energy Gun 20468 | -4/Warlord | Found Prototype Energy Gun 20643 | -4/Warlord | Build established: Scavenger-Mutant 20649 | -4/Warlord | Rebuked by Warlord 20664 | -4/Warlord | Opened Warlord's prototype stash 20669 | -4/Warlord | Found Prototype Reactor 20684 | -4/Warlord | Found Prototype Device 20684 | -4/Warlord | Identified Thermal Barrier 20691 | -4/Warlord | Found Prototype Hackware 20699 | -4/Warlord | Found Prototype Device 20700 | -4/Warlord | Identified Exp. Cloaking Device 20813 | -4/Warlord | Warlord forces counterattacked 20837 | -4/Warlord | Spotted Striker 20840 | -4/Warlord | Spotted Executioner 20847 | -4/Warlord | Destroyed Executioner 20875 | -4/Warlord | Found Prototype Processor 20921 | -4/Warlord | Spotted Striker 20935 | -4/Warlord | Destroyed Striker 21103 | -4/Warlord | Build established: Scavenger-Skirmisher 21109 | -4/Warlord | Spotted Executioner 21122 | -4/Warlord | Spotted Striker 21135 | -4/Warlord | Destroyed Striker 21138 | -4/Warlord | Warlord base infiltrated, sounded retreat 21160 | -4/Warlord | Spotted Striker 21284 | -4/Warlord | Spotted Striker 21292 | -4/Warlord | Spotted Executioner 21338 | -4/Warlord | Discovered new exit (range 14) 21363 | -4/Warlord | Entered Proximity Caves 21392 | -3/Proximity Caves | Spotted B-86 Titan 21425 | -3/Proximity Caves | Destroyed B-86 Titan 21493 | -3/Proximity Caves | Build established: Scavenger-Tank 21496 | -3/Proximity Caves | Attracted the attention of an 0b10 checkpoint 21779 | -3/Proximity Caves | Discovered exit to Research (range 13) 21806 | -3/Proximity Caves | Entered Research 21806 | -3/Research | Evolved 2 slots: Utility x2 21890 | -3/Research | Identified Exp. Targeting Computer 22013 | -3/Research | Identified Vortex Rifle (x2) 22022 | -3/Research | Found Active Sensor Suite 22265 | -3/Research | Spotted B-86 Titan 22272 | -3/Research | Garrison activated, responded to threat 22288 | -3/Research | Build established: Scavenger-Gunner 22483 | -3/Research | Lost 3 parts (1p1u1w) 22510 | -3/Research | System corruption reached 10% 22525 | -3/Research | Identified Vortex Chain Reactor 22771 | -3/Research | Found Exp. Signal Interpreter 22879 | -3/Research | Zion Light squad teleported in 22901 | -3/Research | Incoming investigation squad redirected 22904 | -3/Research | Found Zio. Weapon Casing 22948 | -3/Research | Incoming investigation squad redirected 22957 | -3/Research | Cargo convoy interrupted 22958 | -3/Research | Spotted Executioner 22981 | -3/Research | Incoming assault squad redirected 22983 | -3/Research | Core integrity fell below 50% 22994 | -3/Research | Core integrity fell below 20% 22997 | -3/Research | Destroyed 15 combat bots 23006 | -3/Research | Incoming investigation squad redirected 23007 | -3/Research | Terminal network hard line cut 23017 | -3/Research | Lost 16 parts (1p5n6u4w) 23062 | -3/Research | Destroyed by X-82 Rainmaker with Heavy Flak Cannon Last Messages --------------- 23024_ System corrupted: Substantial component data lost. 23025_ Slammed into T-07 Excavator. 23029_ Destabilizing: System corrupted (+1). 23032_ Slug penetrates Wall. 23041_ Penetrated by Slug. 23043_ Acquired Biometal Medium Treads. 23045_ System corrupted: Matter fused (-7). 23046_ Slammed into Y-72 Warden. 23053_ Acquired Arm. Huge Wheel. 23058_ Slammed into Y-72 Warden. 23059_ Penetrated by Slug. 23059_ Slug penetrates Wall. 23059_ Biometal Medium Treads destroyed. 23059_ Penetrated by Slug. 23059_ Slug penetrates Wall. 23061_ Slammed into Y-72 Warden. 23061_ Arm. Huge Wheel broken. 23061_ Destabilizing: Short circuit. 23062_ System corrupted: Arm. Huge Wheel rejected. 23062_ Knocked back. Map ----- +----------------------------------------------------+ | ?????????????????????????????????? =%* ##""### | | ???????????????????????????????????########?####! | | ???????????????????????????????????????????????# | | ???????????????????????????????????????????????# | | ?????????????????????????????????#?????????????# | | ????????????????????????????????? ????######### ! | | ????????????????????????????????? ??# ! #? | | ?????????????????????????????????"" ?# ### | | ?????????????????????????????????"" # " | | ?????????????????????????????????"T / "T | | ??????????????#######??????????????????# | | ??????????????# ! ??????????????????# ]### | | ??????????????# ??????????????????# #?? | | ??????????????# ???????????????????###### ##?? | | ??????????????# ????????????????????????# #??? | | ??????????????? ????????????????????????# #??? | | ???????????????? ????????????????????????# #??? | | ?????????????????#+########################## #??? | | ?????????????????# % % % % % #??? | | ?????????????????#%############################??? | | ?????????????????# #?????????????????????????????? | | ???????#######?### ###???????????????????????????? | | ???????# #?# ################????????????? | | ???????# ### h h #????????????? | | ???????+ k x Y #????????????? | | ???????# ### Yx=@ #????????????? | | ???????# #?# ##/######### #????????????? | | ???????###+###?###+### #????????????????????? | | ???????? ???# ## ! #????????????????????? | | ???????#* ! #?# | ## #????????????????????? | | ???????# #?# ## ! #????????????????????? | | ???????# ! =#?#| # ! #????????????????????? | | ???????# #?# ## ! ! #????????????????????? | | ???????# ! #?# = #########????????????????????? | | ???????########?# #????????????????????????????? | | ????????????????#####????????????????????????????? | | ?????????????????????????????????????????????????? | | ?????????????????????????????????????????????????? | | ?????????????????????????????????????????????????? | | ?????????????????????????????????????????????????? | | ?????????????????????????????????????????????????? | | ?????????????????????????????????????????????????? | | ?????????????????????????????????????????????????? | | ?????????????????????????????????????????????????? | | ?????????????????????????????????????????????????? | | ?????????????????????????????????????????????????? | | ?????????????????????????????????????????????????? | | ?????????????????????????????????????????????????? | | ?????????????????????????????????????????????????? | | ?????????????????????????????????????????????????? | +----------------------------------------------------+ Best States ------------- Heat Dissipation 133 Coolant Potential 160 Energy Generation 55 Energy Capacity 700 Matter Stores 300 Matter Capacity 700 Sight Range 16 Robot Scan Range 20 Terrain Scan Density 10 Jamming Range 16 Armor Coverage 1600 Resistance: TH 50 Resistance: EM 90 Propulsion Shielding 90 Utility Shielding 66 Weapon Shielding 100 Weapon Cycling 20 Evasion (%) 50 Targeting Accuracy 20 Armor Integrity Analysis 40 Recoil Reduction 6 Particle Charging 30 Item Schematics ----------------- Energy Filter | -7/Zion | Archive 0b10 Decoder Chip [Looter] | -7/Zion | Archive Transmission Jammer | -7/Zion | Archive Thermal Shield | -7/Zion | Archive Imp. Hardlight Generator | -7/Zion | Archive Mak. Axe | -7/Zion | Archive Hvy. Shock Bomb Launcher | -7/Zion | Archive Mak. Trap Scanner | -7/Zion | Archive Power Amplifier | -7/Zion | Archive Mak. Armor Plating | -7/Zion | Archive Drone Bay | -7/Zion | Archive Dynamic Insulation System | -7/Zion | Archive Lgt. Fission Core | -7/Zion | Archive Microactuators | -7/Zion | Archive Imp. Airjet | -6/Factory | Z-intel Biomechanical Wings | -6/Factory | Z-intel Prc. Assault Rifle | -6/Factory | Z-intel Cld. Cesium-ion Thruster | -6/Factory | Z-intel Imp. Lightning Gun | -6/Factory | Z-intel Cld. Deuterium Engine | -6/Factory | Z-intel Enh. Autogun | -6/Factory | Z-intel Imp. Heavy Laser | -6/Factory | Z-intel Force Rifle | -6/Factory | Z-intel Com. Ion Cannon | -6/Factory | Z-intel Combat Drone Bay | -6/Data Miner | Free Lgt. Regenerative Plating | -6/Data Miner | Free Enh. Armored Leg | -6/Data Miner | Free Imp. Matter Compressor | -6/Data Miner | Free Neutron Cannon | -6/Data Miner | Free Adv. Medium Treads | -6/Data Miner | Free Imp. Remote Shield | -6/Data Miner | Free Phase Gun | -6/Data Miner | Free Biometal Medium Treads | -6/Data Miner | Free Adv. VSS Leg | -6/Data Miner | Free Imp. Thermal Shield | -5/Factory | Z-intel Imp. Utility Shielding | -5/Factory | Z-intel Imp. Terrain Scanner | -5/Factory | Z-intel Targeting Computer | -5/Factory | Z-intel Force Booster | -5/Factory | Z-intel Hyp. Coil Gun | -5/Factory | Z-intel Flexi-carbon Leg | -5/Factory | Z-intel Com. Matter Pod | -5/Factory | Z-intel Wave Gun | -5/Factory | Z-intel Imp. Target Analyzer | -5/Factory | Z-intel Lightning Gun | -5/Factory | Z-intel Matter Compressor | -5/Factory | Z-intel Plasma Rifle | -5/Factory | Z-intel Robot Schematics ------------------ R-06 Scavenger | -7/Zion | Archive B-48 Gladiator | -7/Zion | Archive O-24 Administrator | -7/Zion | Archive A-15 Conveyor | -6/Data Miner | Free E-15 Imp | -6/Data Miner | Free Y-54 Guardian | -6/Data Miner | Free H-66 Slayer | -6/Data Miner | Free D-63 Destroyer | -6/Data Miner | Free A-02 Transporter | -5/Factory | Z-intel I-47 Archangel | -5/Factory | Z-intel T-07 Excavator | -5/Factory | Z-intel K-01 Serf | -5/Factory | Z-intel P-70 Sage | -5/Factory | Z-intel Fabricated ------------ Nothing Alien Tech Used ----------------- None Achievements -------------- None Challenges ------------ None Game ------ Seed CorruptionCryofiberDriver Manual? 0 Play Time 02:32:37 Cumulative 672.0 hours Start 2022.06.05 @ 20:48:46 End 2022.06.06 @ 19:39:01 Sessions 3 Manual Loads 0 Difficulty Rogue Special Mode None Game No. 440 Rogue 433 Adventurer 0 Explorer 7 Win Type - Total 48 Types 17/5/18/2/0/1/3/1/1 Lore% 88 Gallery% 96 Achievement% 82 Wizard Run 0 Options --------- ASCII 0 Keyboard 0 Movement Numpad Keybinds 0 Fullscreen 1 Font 18/X11Bold Map View 76x50 Tactical HUD 1 Map Filters NONE Filters NONE Steam 1 RUN: bd8e15c7-b5e9-4b04-bcfb-d4ba9798c4ae